bitfinex-derivatives/quotes_SOLF0:USTF0_20260102
["timestamp","ask_amount","ask_price","bid_price","bid_amount"]
[1767366553070,0.05991084,128.61,128.59,0.05461056]
[1767366553370,0.39761044,128.67,128.59,0.45795084]
[1767366553578,0.39761044,128.67,128.59,0.40334028]
[1767366554070,92.21761044,128.68,128.6,7.0035]
[1767366554280,0.0595351,128.65,128.63,0.05498834]
[1767366555277,91.82,128.7,128.63,0.05498834]
[1767366555472,92.21761044,128.7,128.61,7.40634028]
[1767366555674,91.82,128.7,128.64,0.40334028]
[1767366555975,6.9979,128.71,128.64,0.40334028]
[1767366556188,0.39761044,128.73,128.64,0.40334028]
[1767366556376,0.05825975,128.7,128.67,0.05432707]
[1767366560087,6.9965,128.74,128.67,0.05432707]
[1767366560386,92.21761044,128.75,128.66,109.29554028]
[1767366560983,0.39761044,128.75,128.66,109.29554028]
[1767366561284,0.05258498,128.72,128.69,0.05006791]
[1767366561692,91.82,128.76,128.69,7.04866791]
[1767366562589,0.39761044,128.78,128.69,7.04866791]
[1767366562590,0.39761044,128.78,128.7,6.9981]
[1767366562997,0.04896419,128.75,128.73,0.05044196]
[1767366563788,91.82,128.79,128.73,0.05044196]
[1767366564392,6.993,128.8,128.73,0.05044196]
[1767366564585,0.39761044,128.81,128.72,7.40014028]
[1767366564791,0.39761044,128.81,128.72,0.40334028]
[1767366564993,7.39001044,128.81,128.75,0.05249909]
[1767366565696,6.9929,128.8,128.75,0.05249909]
[1767366565996,0.39761044,128.81,128.75,0.05249909]
[1767366567187,0.38894938,128.8,128.69,0.39922875]
[1767366567585,91.8,128.79,128.71,0.39922875]
[1767366567905,109.15424938,128.82,128.71,0.39922875]
[1767366567906,92.18894938,128.82,128.71,0.39922875]
[1767366568288,7.38084938,128.82,128.75,0.0565873]
[1767366569490,0.38894938,128.85,128.75,0.45581605]
[1767366569694,0.38894938,128.85,128.79,0.05581949]
[1767366569883,6.9913,128.83,128.79,0.05581949]
[1767366570284,0.38894938,128.83,128.75,0.39922875]
[1767366570987,0.38894938,128.83,128.75,7.39462875]
[1767366571193,7.38074938,128.82,128.73,91.82]
[1767366571399,0.05633201,128.79,128.76,0.05594743]
[1767366573099,0.05633201,128.79,128.72,0.39922875]
[1767366573605,0.05633201,128.79,128.72,7.39622875]
[1767366573997,0.05633201,128.79,128.74,0.05994772]
[1767366576109,7.04973201,128.79,128.74,0.05994772]
[1767366576806,0.05633201,128.79,128.74,0.05994772]
[1767366577414,0.05633201,128.79,128.75,6.9954]
[1767366577610,6.9922,128.82,128.75,7.39462875]
[1767366577797,6.9922,128.82,128.75,0.39922875]
[1767366578102,6.9923,128.81,128.74,6.996]
[1767366578702,0.05463964,128.79,128.76,0.05742971]
[1767366578901,6.9917,128.83,128.76,0.05922372]
[1767366579118,0.38894938,128.83,128.76,0.05922372]
[1767366580206,7.38064938,128.82,128.76,0.05922372]
[1767366580509,0.38894938,128.82,128.78,0.05297021]
[1767366580710,0.38894938,128.82,128.74,0.39922875]
[1767366580902,6.9924,128.81,128.74,0.39922875]
[1767366581904,0.054278,128.79,128.76,0.05054775]
[1767366582605,6.9917,128.82,128.76,0.05054775]
[1767366583509,7.38124938,128.81,128.76,0.05054775]
[1767366583703,7.38124938,128.81,128.77,0.0591402]
[1767366584015,0.38894938,128.81,128.72,91.8]
[1767366584608,0.38894938,128.81,128.72,92.19922875]
[1767366584807,6.9928,128.8,128.73,6.9965]
[1767366585106,0.04952704,128.78,128.75,0.0546966]
[1767366587810,0.38894938,128.77,128.7,6.9977]
[1767366588296,0.38894938,128.77,128.71,6.9976]
[1767366588813,0.05859545,128.75,128.73,0.05587308]
[1767366589520,6.9933,128.8,128.74,0.39922875]
[1767366589805,7.38224938,128.8,128.73,6.9964]
[1767366590000,6.9934,128.79,128.72,6.9971]
[1767366590413,0.05181501,128.77,128.74,0.05316904]
[1767366590907,0.38894938,128.83,128.74,0.45239779]
[1767366591218,6.9923,128.81,128.74,7.39482875]
[1767366591514,7.38124938,128.81,128.74,7.39482875]
[1767366592215,7.38124938,128.81,128.76,0.05575858]
[1767366593910,0.38894938,128.84,128.76,0.45498733]
[1767366594116,0.38894938,128.84,128.79,0.05623014]
[1767366595116,0.38894938,128.83,128.74,6.9962]
[1767366595316,0.38894938,128.83,128.73,0.39922875]
[1767366595512,6.9924,128.82,128.75,6.9962]
[1767366596015,6.9924,128.82,128.77,0.04953324]
[1767366596016,0.0596247,128.8,128.77,0.04953324]
[1767366598418,0.47283498,128.8,128.73,0.39922875]
[1767366599119,7.46643498,128.8,128.73,7.39642875]
[1767366599317,7.46643498,128.8,128.75,0.05042841]
[1767366600211,0.47283498,128.8,128.67,116.18077595]
[1767366600416,0.41321028,128.78,128.68,0.40408549]
[1767366600721,0.41321028,128.77,128.68,0.40408549]
[1767366601017,7.40861028,128.77,128.7,6.9988]
[1767366601411,0.05629527,128.75,128.72,0.04920696]
[1767366602315,0.41321028,128.83,128.73,0.40408549]
[1767366602516,0.41321028,128.81,128.73,0.40408549]
[1767366602717,0.41321028,128.8,128.68,109.28878549]
[1767366602919,0.41321028,128.78,128.68,0.40408549]
[1767366603121,6.9946,128.78,128.71,6.9983]
[1767366603322,0.05477859,128.76,128.73,0.05224876]
[1767366603516,92.15321028,128.81,128.73,0.40408549]
[1767366603822,7.40671028,128.8,128.73,7.40118549]
[1767366604117,7.40671028,128.8,128.73,0.40408549]
[1767366604324,0.41321028,128.8,128.73,0.40408549]
[1767366604514,0.04854427,128.78,128.75,0.05140551]
[1767366606226,91.76,128.82,128.75,0.455491]
[1767366606416,0.41321028,128.84,128.75,0.455491]
[1767366606617,0.41321028,128.84,128.75,0.40408549]
[1767366607431,91.76,128.85,128.78,0.05655123]
[1767366607822,0.41321028,128.84,128.78,0.05655123]
[1767366608323,7.40461028,128.84,128.78,0.05655123]
[1767366609429,6.992,128.83,128.78,0.05655123]
[1767366609623,0.41321028,128.84,128.78,0.05655123]
[1767366609825,0.41321028,128.82,128.78,0.05655123]
[1767366611225,7.40571028,128.82,128.78,0.05655123]
[1767366611529,0.41321028,128.82,128.78,0.05655123]
[1767366613033,0.41321028,128.8,128.7,0.40408549]
[1767366613234,0.41321028,128.76,128.67,0.40408549]
[1767366613427,0.41321028,128.76,128.61,4.87418648]
[1767366613428,108.8449,128.74,128.61,4.87418648]
[1767366613625,0.41321028,128.72,128.61,109.34858549]
[1767366613824,0.41321028,128.71,128.61,109.34858549]
[1767366614033,0.05655123,128.67,128.65,0.05400762]
[1767366614224,0.41321028,128.73,128.64,0.40408549]
[1767366614424,7.41091028,128.73,128.65,7.0015]
[1767366614625,0.41321028,128.73,128.65,7.0015]
[1767366614827,0.41321028,128.73,128.65,0.40408549]
[1767366615330,0.41321028,128.78,128.68,0.4545662]
[1767366615635,0.41321028,128.78,128.72,0.05929549]
[1767366615843,0.41321028,128.76,128.65,0.40408549]
[1767366616530,113.69261127,128.78,128.67,0.40408549]
[1767366616726,0.41321028,128.77,128.67,0.40408549]
[1767366616926,0.05735985,128.73,128.71,0.05653526]
[1767366619734,0.05735985,128.73,128.67,0.40408549]
[1767366619948,0.05735985,128.73,128.64,0.40408549]
[1767366619949,0.47057013,128.73,128.64,0.40408549]
[1767366620130,0.41321028,128.73,128.64,0.40408549]
[1767366620938,0.05968281,128.7,128.67,0.05064456]
[1767366626143,7.5047273,128.7,128.62,7.0031]
[1767366626441,0.41227574,128.69,128.58,0.44034428]
[1767366626642,7.0012,128.66,128.58,0.44034428]
[1767366627141,0.04933389,128.63,128.61,0.05417275]
[1767366627349,99.19247574,128.68,128.61,0.05417275]
[1767366628249,91.78,128.68,128.61,0.49451703]
[1767366628450,0.05554721,128.66,128.61,0.49451703]
[1767366628637,0.05554721,128.66,128.61,7.49821703]
[1767366629534,0.05554721,128.66,128.61,0.05417275]
[1767366630947,0.05554721,128.66,128.62,0.44034428]
[1767366631342,0.05554721,128.66,128.61,7.05747275]
[1767366634146,0.05554721,128.66,128.61,0.05417275]
[1767366634964,0.46782295,128.66,128.61,0.05417275]
[1767366636865,0.05554721,128.66,128.61,7.05797275]
[1767366637062,0.05554721,128.66,128.61,0.05417275]
[1767366637462,0.46782295,128.66,128.61,0.05417275]
[1767366638272,7.46912295,128.66,128.61,0.05417275]
[1767366639063,0.41227574,128.65,128.61,0.05417275]
[1767366639265,0.41227574,128.61,128.53,0.44034428]
[1767366639967,0.41227574,128.61,128.54,7.0075]
[1767366640164,0.05484008,128.59,128.56,0.05456778]
[1767366640868,7.0029,128.63,128.56,0.05456778]
[1767366641768,7.41517574,128.63,128.56,0.05456778]
[1767366641969,0.41227574,128.62,128.56,0.05456778]
[1767366642168,0.05448468,128.6,128.56,0.05456778]
[1767366642961,0.46676042,128.6,128.51,98.8891]
[1767366643166,0.41227574,128.6,128.51,98.8891]
[1767366643371,0.41227574,128.59,128.49,0.44034428]
[1767366643769,7.41857574,128.57,128.49,0.44034428]
[1767366643971,0.41227574,128.56,128.47,12.58943441]
[1767366644168,0.05560986,128.54,128.47,12.58943441]
[1767366645166,0.4678856,128.54,128.49,0.05200869]
[1767366645368,7.0088,128.52,128.47,12.14909013]
[1767366645677,0.41227574,128.53,128.47,12.14909013]
[1767366646076,7.42057574,128.53,128.47,12.14909013]
[1767366646275,0.05429097,128.51,128.49,0.05254412]
[1767366646472,7.47616671,128.51,128.43,7.0134]
[1767366646672,7.42187574,128.51,128.43,7.0134]
[1767366646878,0.41227574,128.51,128.43,7.0134]
[1767366647472,4.47010099,128.52,128.46,0.05620218]
[1767366647473,0.05785175,128.48,128.46,0.05620218]
[1767366647676,91.86,128.53,128.46,0.05620218]
[1767366648278,0.17029313,128.54,128.46,0.05620218]
[1767366648478,0.17029313,128.54,128.44,7.45324428]
[1767366648681,0.05493959,128.5,128.48,0.05691497]
[1767366649183,91.88,128.56,128.48,0.05691497]
[1767366649383,91.88,128.56,128.44,0.44034428]
[1767366649384,0.28740942,128.53,128.44,0.44034428]
[1767366649582,0.28740942,128.53,128.38,109.1376]
[1767366649583,0.28740942,128.51,128.41,99.37464428]
[1767366650083,7.29810942,128.49,128.41,0.44034428]
[1767366650386,0.05225175,128.47,128.45,0.05733762]
[1767366650589,0.05225175,128.47,128.41,0.44034428]
[1767366651087,0.05225175,128.47,128.38,0.44034428]
[1767366651384,7.24668167,128.46,128.38,0.44034428]
[1767366651580,0.05167569,128.43,128.41,0.05661776]
[1767366652883,7.0109,128.48,128.41,0.05661776]
[1767366653376,0.23915173,128.49,128.41,0.49696204]
[1767366653581,0.23915173,128.49,128.41,0.44034428]
[1767366653774,0.05136138,128.46,128.44,0.05031121]
[1767366653976,103.64263962,128.52,128.44,0.05031121]
[1767366654176,11.72263962,128.52,128.42,0.44034428]
[1767366654579,0.2475158,128.51,128.42,0.44034428]
[1767366654981,0.0545548,128.48,128.45,0.05588947]
[1767366656982,91.92,128.53,128.45,0.49527394]
[1767366657184,0.25947324,128.54,128.45,0.43938447]
[1767366657681,7.26737324,128.54,128.45,7.45158447]
[1767366658073,0.05510344,128.51,128.48,0.0579143]
[1767366659983,7.0075,128.55,128.48,0.0579143]
[1767366660387,0.38410122,128.56,128.48,0.0579143]
[1767366660583,0.38410122,128.56,128.47,4.90948546]
[1767366660783,0.38410122,128.56,128.48,0.43938447]
[1767366660981,91.94,128.57,128.5,109.47778447]
[1767366661184,0.38410122,128.6,128.52,0.05936167]
[1767366661383,0.38410122,128.6,128.51,0.43938447]
[1767366661596,7.45018026,128.59,128.48,109.49498447]
[1767366661786,0.44508026,128.58,128.49,0.43938447]
[1767366662288,7.45068026,128.58,128.52,0.05652067]
[1767366662587,0.44508026,128.6,128.52,0.05652067]
[1767366662785,0.40078394,128.58,128.46,0.43938447]
[1767366662995,0.40078394,128.56,128.46,0.43938447]
[1767366663185,0.40460542,128.55,128.42,113.57490099]
[1767366663380,0.40460542,128.52,128.43,0.43938447]
[1767366663686,0.40460542,128.52,128.4,109.1211]
[1767366663687,0.40460542,128.52,128.4,0.43938447]
[1767366663886,0.4613629,128.49,128.4,0.43938447]
[1767366664182,0.408383,128.48,128.37,0.43938447]
[1767366664586,7.420083,128.47,128.37,7.45608447]
[1767366664988,0.05702184,128.43,128.41,0.05404225]
[1767366665587,0.41462311,128.43,128.31,0.43938447]
[1767366665892,0.35760127,128.43,128.31,109.64038447]
[1767366666088,103.78040226,128.45,128.34,0.43938447]
[1767366666288,99.31030127,128.45,128.34,0.43938447]
[1767366666494,0.05121736,128.41,128.38,0.05342584]
[1767366667083,92.30082434,128.45,128.38,0.05342584]
[1767366667784,7.37425028,128.48,128.38,0.49281031]
[1767366667982,0.05493619,128.44,128.42,0.05331483]
[1767366668187,0.05493619,128.44,128.38,0.43938447]
[1767366668398,0.05493619,128.44,128.36,92.43938447]
[1767366668591,7.32458291,128.47,128.37,0.43938447]
[1767366668794,99.28328291,128.49,128.38,7.45528447]
[1767366669199,0.05231808,128.45,128.38,7.45528447]
[1767366669403,91.96,128.5,128.42,0.05071152]
[1767366669590,91.96,128.5,128.4,0.43938447]
[1767366670100,91.96,128.5,128.41,0.43938447]
[1767366670490,0.05431697,128.47,128.44,0.05916982]
[1767366671087,0.42491515,128.47,128.38,0.43938447]
[1767366671399,0.37059818,128.47,128.38,7.45518447]
[1767366671599,0.37311168,128.45,128.35,0.43938447]
[1767366671804,0.37311168,128.42,128.32,0.43938447]
[1767366671994,0.05077834,128.38,128.36,0.05698342]
[1767366672194,0.05077834,128.38,128.32,0.43938447]
[1767366673300,0.05077834,128.38,128.34,0.0595828]
[1767366675304,91.98,128.42,128.34,0.49896727]
[1767366675502,91.98,128.42,128.34,0.43938447]
[1767366675801,0.3831135,128.45,128.34,0.43938447]
[1767366675991,0.43389184,128.44,128.34,0.43938447]
[1767366676497,0.05678365,128.4,128.31,0.43938447]
[1767366676700,0.43615393,128.42,128.31,0.43938447]
[1767366677105,0.43615393,128.42,128.33,0.43938447]
[1767366677604,0.05509933,128.39,128.36,0.05498526]
[1767366679494,0.05509933,128.39,128.31,7.0198]
[1767366679697,109.54985393,128.42,128.31,7.0198]
[1767366679698,109.51009256,128.41,128.31,7.0198]
[1767366679894,7.0161,128.39,128.3,92.47938447]
[1767366680098,0.39255249,128.37,128.27,0.43938447]
[1767366680498,0.05920813,128.33,128.31,0.05715271]
[1767366683404,0.05920813,128.33,128.24,0.43938447]
[1767366683711,0.3985818,128.35,128.26,0.43938447]
[1767366684301,7.4169818,128.35,128.27,7.022]
[1767366684495,0.05783815,128.32,128.3,0.05162763]
[1767366685309,0.34552529,128.38,128.3,0.05162763]
[1767366685608,109.1435,128.39,128.31,7.45938447]
[1767366685609,7.0162,128.39,128.31,7.45938447]
[1767366685806,0.40336344,128.41,128.32,0.43938447]
[1767366686197,7.0154,128.4,128.32,0.43938447]
[1767366686506,0.04998904,128.38,128.29,7.54313183]
[1767366686702,7.017,128.37,128.29,7.54313183]
[1767366687099,0.35238523,128.39,128.29,7.54313183]
[1767366687506,0.0526996,128.35,128.33,0.05093427]
[1767366688608,92.04,128.41,128.33,0.5731661]
[1767366688808,92.04,128.41,128.33,0.52223183]
[1767366689314,99.0549,128.41,128.33,7.54103183]
[1767366689504,0.05489314,128.38,128.36,0.05695223]
[1767366690405,0.40899586,128.42,128.36,0.05695223]
[1767366691011,7.0148,128.41,128.36,0.05695223]
[1767366691510,0.05919799,128.4,128.36,0.05695223]
[1767366694205,0.41985213,128.45,128.36,0.05695223]
[1767366694407,0.41985213,128.45,128.34,0.51962864]
[1767366694596,0.42172454,128.44,128.34,0.51962864]
[1767366694804,7.0137,128.43,128.36,0.51962864]
[1767366695114,92.46172454,128.46,128.38,0.05866477]
[1767366695408,92.46172454,128.46,128.36,0.51962864]
[1767366695600,92.46172454,128.46,128.37,7.53632864]
[1767366695801,0.42172454,128.46,128.37,7.53632864]
[1767366696313,0.05047108,128.43,128.4,0.05004581]
[1767366697407,0.42172454,128.46,128.4,0.05004581]
[1767366697603,7.0116,128.47,128.4,0.05004581]
[1767366698009,92.04,128.48,128.4,0.05004581]
[1767366698216,7.43801372,128.49,128.4,0.51962864]
[1767366698217,0.42721372,128.49,128.4,0.51962864]
[1767366698512,7.06885879,128.46,128.43,0.05120403]
[1767366698714,7.06885879,128.46,128.38,92.06]
[1767366698903,7.0121,128.46,128.38,92.57962864]
[1767366699102,7.0113,128.48,128.39,0.51962864]
[1767366699514,0.4307689,128.48,128.39,0.51962864]
[1767366699717,0.4307689,128.48,128.42,0.04946353]
[1767366699718,0.05007257,128.45,128.42,0.04946353]
[1767366700316,7.0133,128.44,128.36,7.53692864]
[1767366700815,0.43251592,128.46,128.37,0.51962864]
[1767366701316,0.05791057,128.43,128.4,0.0542693]
[1767366703615,0.05791057,128.43,128.34,0.51962864]
[1767366703815,0.38817398,128.45,128.34,0.51962864]
[1767366704314,0.38984211,128.44,128.35,7.53752864]
[1767366704514,0.05846653,128.41,128.38,0.05546209]
[1767366707925,0.39495794,128.47,128.38,0.57509073]
[1767366708129,0.39495794,128.47,128.38,0.51962864]
[1767366709016,0.05847955,128.44,128.41,0.05984729]
[1767366709917,0.39495794,128.47,128.41,7.07454729]
[1767366710118,92.02,128.48,128.41,7.07454729]
[1767366710321,7.0121,128.46,128.41,0.05984729]
[1767366710930,0.05879697,128.45,128.41,0.05984729]
[1767366711219,0.05879697,128.45,128.41,7.59397593]
[1767366711425,0.45847686,128.5,128.41,0.57947593]
[1767366711621,0.45847686,128.5,128.41,0.51962864]
[1767366711829,7.0107,128.49,128.41,7.53392864]
[1767366712220,7.0107,128.49,128.41,0.51962864]
[1767366712520,0.45847686,128.5,128.44,0.05108818]
[1767366713718,0.48541742,128.53,128.44,0.57071682]
[1767366713919,0.48541742,128.53,128.47,0.05439124]
[1767366714523,109.48001742,128.56,128.47,0.05439124]
[1767366714723,0.48541742,128.55,128.5,0.05990113]
[1767366715028,7.0079,128.54,128.5,0.05990113]
[1767366715225,92.0,128.57,128.5,0.05990113]
[1767366715929,7.007,128.56,128.5,0.05990113]
[1767366716120,7.007,128.56,128.52,0.05241124]
[1767366717825,0.52970007,128.56,128.48,0.51962864]
[1767366718028,108.9827,128.57,128.44,109.0901]
[1767366718029,92.0,128.58,128.47,0.54052582]
[1767366718519,92.48174436,128.58,128.47,0.54052582]
[1767366718931,0.05241124,128.54,128.51,0.05910677]
[1767366719918,0.05241124,128.54,128.47,0.54052582]
[1767366720323,7.06011124,128.54,128.47,0.54052582]
[1767366720620,0.05241124,128.54,128.47,0.54052582]
[1767366720935,0.52970007,128.55,128.46,0.54052582]
[1767366721131,0.52970007,128.54,128.46,0.54052582]
[1767366721428,7.0082,128.52,128.45,0.54052582]
[1767366721630,109.51640007,128.56,128.45,0.54052582]
[1767366721836,0.0492621,128.52,128.49,0.05290214]
[1767366722621,435.7596,128.62,128.49,0.05290214]
[1767366722622,92.48970007,128.58,128.49,0.05290214]
[1767366722933,7.0059,128.56,128.47,0.54052582]
[1767366723231,0.52970007,128.55,128.47,0.54052582]
[1767366723532,0.52970007,128.55,128.5,0.05684934]
[1767366723936,7.007,128.54,128.5,0.05684934]
[1767366725030,0.52970007,128.58,128.5,0.05684934]
[1767366725232,0.52970007,128.58,128.49,0.54052582]
[1767366725233,0.52970007,128.58,128.53,0.05690706]
[1767366725632,7.53480007,128.58,128.53,0.05690706]
[1767366726636,7.0053,128.57,128.53,0.05690706]
[1767366727328,7.0063,128.56,128.49,0.54052582]
[1767366727830,7.0065,128.55,128.47,7.0106]
[1767366728026,7.0065,128.55,128.47,7.55112582]
[1767366728340,7.50406441,128.59,128.5,7.60257256]
[1767366728538,7.50406441,128.59,128.5,7.54932582]
[1767366728539,0.49936441,128.59,128.5,7.54932582]
[1767366728837,7.0048,128.58,128.51,7.0085]
[1767366729343,0.49936441,128.59,128.53,0.05184861]
[1767366731238,7.0045,128.59,128.53,0.05184861]
[1767366731544,91.96,128.6,128.53,0.05184861]
[1767366731545,0.52970007,128.6,128.53,0.05184861]
[1767366731743,92.46970007,128.6,128.53,0.05184861]
[1767366731932,99.47380007,128.6,128.53,0.05184861]
[1767366732137,0.52970007,128.59,128.53,0.05184861]
[1767366732534,7.53440007,128.59,128.53,0.05184861]
[1767366733236,0.52970007,128.59,128.53,0.05184861]
[1767366734635,0.52970007,128.58,128.53,0.05184861]
[1767366735441,7.0058,128.57,128.53,0.05184861]
[1767366735751,91.94,128.6,128.53,0.59237443]
[1767366736338,7.0042,128.59,128.53,0.59237443]
[1767366736845,7.0048,128.58,128.53,0.59237443]
[1767366737148,91.94,128.6,128.53,0.59237443]
[1767366737442,7.0042,128.59,128.53,0.59237443]
[1767366737838,7.0048,128.58,128.53,0.59237443]
[1767366738039,7.0048,128.58,128.53,0.05184861]
[1767366739445,7.0054,128.57,128.53,0.05184861]
[1767366739640,0.52970007,128.59,128.53,0.05184861]
[1767366739846,0.52970007,128.59,128.5,0.54052582]
[1767366739847,0.52970007,128.58,128.47,0.54052582]
[1767366740043,7.53490007,128.58,128.49,7.0096]
[1767366740243,0.52970007,128.58,128.49,7.55012582]
[1767366740450,0.52970007,128.58,128.49,0.54052582]
[1767366740654,0.52970007,128.58,128.5,7.54952582]
[1767366740844,0.05600113,128.55,128.53,0.05628186]
[1767366741651,0.05600113,128.55,128.47,0.54052582]
[1767366741948,0.52970007,128.58,128.48,7.0101]
[1767366742251,0.4683133,128.57,128.48,7.0101]
[1767366742552,4.48686679,128.58,128.49,0.54052582]
[1767366742747,0.52427703,128.61,128.52,0.59678]
[1767366742947,0.52427703,128.61,128.52,0.54052582]
[1767366743347,0.52427703,128.61,128.54,7.0068]
[1767366743756,0.05284896,128.59,128.56,0.05621447]
[1767366744356,7.0027,128.62,128.56,0.05621447]
[1767366744357,91.92,128.63,128.56,0.05621447]
[1767366745354,0.47313479,128.6,128.51,0.54052582]
[1767366746054,7.47693479,128.6,128.53,7.0072]
[1767366746457,0.05847785,128.58,128.55,0.05534508]
[1767366747660,7.06327785,128.58,128.55,0.05534508]
[1767366747857,7.06327785,128.58,128.51,0.54052582]
[1767366748767,7.06327785,128.58,128.53,0.04998091]
[1767366749059,7.48508222,128.57,128.53,0.04998091]
[1767366749564,0.05847785,128.58,128.53,0.04998091]
[1767366749954,0.05847785,128.58,128.54,7.0068]
[1767366750155,91.9,128.62,128.54,7.55537941]
[1767366750759,7.0037,128.6,128.54,0.54857941]
[1767366750966,0.4820911,128.63,128.54,0.54857941]
[1767366751262,7.06324802,128.6,128.57,0.05463381]
[1767366751466,0.05954802,128.6,128.51,0.54857941]
[1767366751662,0.48315264,128.61,128.51,0.54857941]
[1767366752470,0.05342209,128.57,128.55,0.05253605]
[1767366752971,0.05342209,128.57,128.51,0.54857941]
[1767366753362,0.05342209,128.57,128.52,7.55647941]
[1767366753561,7.0041,128.6,128.52,7.55647941]
[1767366753859,91.9,128.61,128.54,7.0068]
[1767366754166,0.05743249,128.59,128.56,0.05959808]
[1767366754863,0.49116112,128.68,128.57,91.94]
[1767366755067,0.49116112,128.68,128.59,0.54857941]
[1767366755265,7.49066112,128.68,128.59,7.55247941]
[1767366755458,7.49066112,128.68,128.59,0.54857941]
[1767366755867,0.05793445,128.65,128.62,0.05261924]
[1767366758062,0.55210159,128.65,128.55,91.94]
[1767366758267,0.49416714,128.65,128.55,92.48857941]
[1767366758858,0.49416714,128.65,128.56,0.54857941]
[1767366759059,0.05247596,128.62,128.59,0.05097043]
[1767366761566,91.88,128.66,128.59,0.59954984]
[1767366761771,4.98375808,128.68,128.59,0.59954984]
[1767366761961,4.98375808,128.68,128.59,0.54857941]
[1767366762663,0.05371379,128.65,128.62,0.05596559]
[1767366763274,0.05371379,128.65,128.62,7.05836559]
[1767366763474,91.88,128.7,128.62,0.604545]
[1767366763768,91.88,128.7,128.62,0.54857941]
[1767366764370,0.05788542,128.67,128.65,0.05852369]
[1767366764874,0.55080478,128.67,128.59,0.54857941]
[1767366765176,0.49291936,128.67,128.59,0.54857941]
[1767366765775,0.05565203,128.64,128.62,0.05104729]
[1767366767069,0.05565203,128.64,128.57,7.0048]
[1767366767467,0.55062094,128.64,128.56,7.0057]
[1767366767671,0.49496891,128.64,128.55,0.54857941]
[1767366768064,0.05114161,128.61,128.58,0.05613913]
[1767366771278,0.05114161,128.61,128.52,7.55627941]
[1767366771279,0.54849137,128.61,128.52,7.55627941]
[1767366771469,0.49734976,128.61,128.52,7.55627941]
[1767366772071,0.44219403,128.59,128.49,0.54857941]
[1767366772368,0.44316614,128.58,128.49,0.54857941]
[1767366773079,7.0053,128.57,128.49,0.54857941]
[1767366773374,7.0053,128.57,128.44,4.48686679]
[1767366773375,113.53877631,128.54,128.43,0.54857941]
[1767366773572,7.0093,128.5,128.4,7.56277941]
[1767366773782,0.44412708,128.48,128.36,0.54857941]
[1767366774073,4.48686679,128.46,128.36,0.54857941]
[1767366774276,4.48686679,128.46,128.34,113.64666679]
[1767366774277,0.44507699,128.42,128.32,0.54857941]
[1767366774670,116.55937699,128.42,128.32,0.54857941]
[1767366774975,4.48686679,128.4,128.32,0.54857941]
[1767366775573,0.0562618,128.37,128.35,0.05310145]
[1767366775972,0.0562618,128.37,128.28,19.87310306]
[1767366776176,109.53164018,128.38,128.28,12.85200306]
[1767366776373,4.88410697,128.37,128.28,12.85200306]
[1767366776575,96.76410697,128.37,128.28,12.85200306]
[1767366776774,4.88410697,128.37,128.28,12.85200306]
[1767366776967,0.05317009,128.34,128.31,0.05567993]
[1767366777172,91.88,128.39,128.29,0.56689359]
[1767366777577,96.80410697,128.4,128.3,0.56689359]
[1767366778171,0.04910055,128.36,128.34,0.05688746]
[1767366781074,0.45174434,128.36,128.28,12.28510947]
[1767366781283,0.40264379,128.36,128.28,12.28510947]
[1767366782082,0.05378332,128.33,128.31,0.05793674]
[1767366783389,0.40264379,128.36,128.31,0.05793674]
[1767366783792,92.38942948,128.38,128.31,0.05793674]
[1767366784483,0.05810739,128.36,128.31,0.05793674]
[1767366785486,0.41160131,128.39,128.31,0.62483033]
[1767366785685,92.39160131,128.39,128.31,0.56689359]
[1767366785893,0.4137482,128.38,128.3,7.0197]
[1767366786092,0.4137482,128.38,128.28,12.85200306]
[1767366786093,7.4294482,128.38,128.28,12.85200306]
[1767366786499,0.05016099,128.34,128.32,0.05591788]
[1767366786794,0.05016099,128.34,128.28,12.85200306]
[1767366787093,0.05016099,128.34,128.28,12.28510947]
[1767366787289,0.41794847,128.33,128.28,12.28510947]
[1767366787893,0.41794847,128.33,128.29,0.05434423]
[1767366788393,0.41794847,128.33,128.28,12.28510947]
[1767366788590,7.43654847,128.33,128.28,12.28510947]
[1767366788782,99.45654847,128.33,128.28,12.28510947]
[1767366789389,0.05016099,128.34,128.29,0.05069607]
[1767366790398,7.43946968,128.39,128.29,7.63778966]
[1767366790593,7.43946968,128.39,128.29,7.58709359]
[1767366790792,99.45946968,128.39,128.29,0.56689359]
[1767366791589,92.44406968,128.39,128.33,0.05045393]
[1767366792094,11.50106679,128.41,128.33,0.05045393]
[1767366792095,7.0142,128.41,128.33,0.05045393]
[1767366792291,7.0142,128.41,128.32,7.58559359]
[1767366792984,0.05484707,128.38,128.35,0.05710105]
[1767366794089,92.04,128.42,128.35,0.05710105]
[1767366794488,92.52675525,128.42,128.35,0.05710105]
[1767366794696,0.48675525,128.42,128.35,0.05710105]
[1767366795099,7.06913319,128.4,128.35,0.05710105]
[1767366795590,0.05443319,128.4,128.35,0.05710105]
[1767366797099,0.54497393,128.4,128.35,0.05710105]